bitfinex-derivatives/quotes_BTCF0:USTF0_20250117
["timestamp","ask_amount","ask_price","bid_price","bid_amount"]
[1737080244697,0.54840111,101940.0,101930.0,0.28860974]
[1737080245192,0.54840111,101940.0,101920.0,0.3608]
[1737080245394,0.13076,101930.0,101920.0,0.3608]
[1737080245693,0.049065,101920.0,101910.0,0.14001761]
[1737080246089,0.049065,101920.0,101910.0,0.54988761]
[1737080246289,0.049061,101930.0,101910.0,0.54988761]
[1737080246493,0.049061,101930.0,101920.0,0.13854611]
[1737080246690,0.049061,101930.0,101920.0,0.49934611]
[1737080246885,0.049061,101930.0,101920.0,0.3608]
[1737080247797,0.049061,101930.0,101920.0,0.49934611]
[1737080248898,0.049056,101940.0,101920.0,0.63280911]
[1737080249087,0.049056,101940.0,101930.0,0.49934611]
[1737080249291,0.049056,101940.0,101920.0,0.63280911]
[1737080251900,0.04906,101930.0,101920.0,0.3608]
[1737080254399,0.18760611,101930.0,101920.0,0.3608]
[1737080254710,0.18760611,101930.0,101900.0,0.28191471]
[1737080254711,0.04907,101910.0,101900.0,0.4608]
[1737080255895,0.0894,101920.0,101900.0,0.59934611]
[1737080256096,0.049066,101920.0,101910.0,0.13854611]
[1737080256291,0.049066,101920.0,101900.0,0.59934611]
[1737080256496,0.049066,101920.0,101900.0,0.4608]
[1737080256696,0.04907,101910.0,101900.0,0.4608]
[1737080257599,0.66424611,101930.0,101900.0,0.4608]
[1737080257805,0.049065,101920.0,101910.0,0.49934611]
[1737080257997,0.049056,101940.0,101910.0,0.49934611]
[1737080258307,0.00147215,101950.0,101930.0,0.54840511]
[1737080258505,0.00147215,101950.0,101940.0,0.13854611]
[1737080258901,0.00147215,101950.0,101940.0,0.54840111]
[1737080259105,0.00147215,101950.0,101940.0,0.409855]
[1737080259497,0.0885534,101970.0,101950.0,0.049048]
[1737080259702,0.409836,101980.0,101960.0,0.54839111]
[1737080259900,0.41130296,101990.0,101970.0,0.18758611]
[1737080260091,0.41130296,101990.0,101970.0,0.54838611]
[1737080260301,0.05050296,101990.0,101970.0,0.54838611]
[1737080260703,0.20382287,102000.0,101980.0,0.49934611]
[1737080260906,0.088281,102010.0,102000.0,0.049026]
[1737080261201,0.43683978,102020.0,102010.0,0.049022]
[1737080261412,0.43683978,102020.0,102010.0,0.54836811]
[1737080261906,0.26219598,102030.0,102020.0,0.049017]
[1737080262104,0.61189,102040.0,102030.0,0.049012]
[1737080262297,0.25370068,102060.0,102030.0,0.49934611]
[1737080262496,0.25370068,102060.0,102050.0,0.3608]
[1737080263000,0.049,102060.0,102050.0,0.3608]
[1737080263907,0.049,102060.0,102050.0,0.3607342]
[1737080265300,0.049,102060.0,102050.0,0.49928031]
[1737080265608,0.049,102060.0,102050.0,0.4812803]
[1737080266111,0.049,102060.0,102040.0,0.54835211]
[1737080266609,0.049,102060.0,102040.0,0.49934611]
[1737080267007,0.00147076,102070.0,102050.0,0.54834511]
[1737080267209,0.50978,102100.0,102070.0,0.04899]
[1737080267405,0.50978,102100.0,102090.0,0.13854611]
[1737080268009,0.4608,102100.0,102090.0,0.13854611]
[1737080269712,0.4608,102100.0,102080.0,0.54833411]
[1737080269911,0.4608,102100.0,102090.0,0.13854611]
[1737080270416,0.509778,102100.0,102080.0,0.4813461]
[1737080271809,0.048985,102090.0,102070.0,0.49934611]
[1737080272108,0.048985,102090.0,102080.0,0.13854611]
[1737080272312,0.048985,102090.0,102070.0,0.49934611]
[1737080273501,0.4608,102100.0,102080.0,0.13854611]
[1737080273701,0.3608,102170.0,102090.0,0.75407002]
[1737080273906,0.1,102200.0,102160.0,0.63789222]
[1737080274105,0.1,102200.0,102180.0,0.49934611]
[1737080274507,0.40982118,102190.0,102170.0,0.3608]
[1737080274814,0.40982118,102190.0,102160.0,0.49934611]
[1737080274815,0.048945,102170.0,102160.0,0.37250282]
[1737080275002,0.048945,102170.0,102160.0,0.49934611]
[1737080275203,0.04902318,102190.0,102160.0,0.3608]
[1737080275400,0.04902318,102190.0,102160.0,0.409749]
[1737080275611,0.04902318,102190.0,102170.0,0.3608]
[1737080276009,0.04902318,102190.0,102180.0,0.3608]
[1737080276410,8.618e-05,102190.0,102180.0,0.3608]
[1737080276704,8.618e-05,102190.0,102180.0,0.34279999]
[1737080277517,8.618e-05,102190.0,102160.0,0.3608]
[1737080277518,0.04894,102180.0,102160.0,0.3608]
[1737080277704,0.04894,102180.0,102170.0,0.3608]
[1737080277900,8.618e-05,102190.0,102170.0,0.3608]
[1737080278112,8.618e-05,102190.0,102180.0,0.3608]
[1737080278918,8.618e-05,102190.0,102170.0,0.409743]
[1737080279217,8.618e-05,102190.0,102180.0,0.3608]
[1737080279821,8.618e-05,102190.0,102180.0,0.40974]
[1737080280314,8.618e-05,102190.0,102180.0,0.04894]
[1737080280617,8.618e-05,102190.0,102180.0,0.40974]
[1737080280806,0.1,102200.0,102190.0,0.048935]
[1737080281012,0.1,102200.0,102190.0,0.409735]
[1737080281705,0.3608,102220.0,102190.0,0.87367829]
[1737080282016,0.3608,102220.0,102210.0,0.048926]
[1737080282319,0.3608,102220.0,102200.0,0.409729]
[1737080282818,0.409723,102220.0,102200.0,0.3608]
[1737080283019,0.409726,102210.0,102190.0,0.3608]
[1737080283217,0.048926,102210.0,102190.0,0.3608]
[1737080283919,0.3608,102200.0,102170.0,0.3608]
[1737080284113,0.048935,102190.0,102180.0,0.3608]
[1737080284905,0.048935,102190.0,102170.0,0.409745]
[1737080285111,0.048935,102190.0,102170.0,0.62262329]
[1737080285617,0.409731,102200.0,102180.0,0.3608]
[1737080286114,0.048931,102200.0,102180.0,0.3608]
[1737080286618,0.409728,102210.0,102180.0,0.62261429]
[1737080286816,0.409726,102210.0,102190.0,0.3608]
[1737080287022,0.409731,102200.0,102180.0,0.3608]
[1737080287208,0.048931,102200.0,102180.0,0.3608]
[1737080287411,0.048931,102200.0,102190.0,0.3608]
[1737080288306,0.048926,102210.0,102190.0,0.3608]
[1737080288511,0.048926,102210.0,102200.0,0.3608]
[1737080288713,0.048926,102210.0,102190.0,0.409735]
[1737080288924,0.409726,102210.0,102190.0,0.3608]
[1737080289225,0.048926,102210.0,102190.0,0.57367829]
[1737080290518,0.048926,102210.0,102190.0,0.55567828]
[1737080291220,0.048926,102210.0,102200.0,0.3608]
[1737080291621,0.04893,102200.0,102190.0,0.55567828]
[1737080292127,0.04893,102200.0,102190.0,0.34279999]
[1737080293621,0.04893,102200.0,102180.0,0.3608]
[1737080293828,0.04893,102200.0,102170.0,0.3608]
[1737080293829,0.048935,102190.0,102170.0,0.3608]
[1737080294329,0.40973,102200.0,102170.0,0.3608]
[1737080294518,0.048935,102190.0,102170.0,0.3608]
[1737080294723,0.048935,102190.0,102180.0,0.3608]
[1737080295325,0.048935,102190.0,102180.0,0.34279999]
[1737080297830,0.04894,102180.0,102170.0,0.3608]
[1737080300528,0.048945,102170.0,102160.0,0.3608]
[1737080300936,0.04895,102160.0,102150.0,0.36226831]
[1737080301632,0.04895,102160.0,102150.0,0.00146831]
[1737080301839,0.048954,102150.0,102130.0,0.51050723]
[1737080302029,0.048959,102140.0,102130.0,0.51050723]
[1737080302936,0.04895,102170.0,102140.0,0.048958]
[1737080303135,0.04895,102170.0,102160.0,0.49889667]
[1737080303335,0.1783,102190.0,102160.0,0.49889667]
[1737080303530,0.04894,102180.0,102170.0,0.3608]
[1737080304440,0.04894,102180.0,102170.0,0.49889667]
[1737080304734,0.0369,102180.0,102170.0,0.54784067]
[1737080305141,0.08584,102180.0,102170.0,0.49889667]
[1737080305339,0.0369,102180.0,102170.0,0.49889667]
[1737080305548,0.0369,102180.0,102170.0,0.54784167]
[1737080307141,0.048936,102190.0,102170.0,0.77411356]
[1737080307345,0.048936,102190.0,102180.0,0.3608]
[1737080307644,0.048936,102190.0,102180.0,0.49889667]
[1737080308646,0.048936,102190.0,102180.0,0.22627189]
[1737080308946,0.3608,102200.0,102180.0,0.22627189]
[1737080309137,0.048936,102190.0,102180.0,0.22627189]
[1737080309440,0.048936,102190.0,102170.0,0.72516856]
[1737080309743,0.04894,102180.0,102170.0,0.72516856]
[1737080309947,0.04894,102180.0,102170.0,0.58707189]
[1737080310531,0.04894,102180.0,102170.0,0.3608]
[1737080313643,0.04894,102180.0,102170.0,0.49889667]
[1737080313846,0.04894,102180.0,102170.0,0.3608]
[1737080314045,0.04894,102180.0,102150.0,0.37206758]
[1737080314046,0.54783667,102180.0,102150.0,0.37206758]
[1737080314241,0.04895,102160.0,102150.0,0.37206758]
[1737080314443,0.04895,102160.0,102140.0,0.50036482]
[1737080314642,0.048954,102160.0,102150.0,0.49889667]
[1737080315547,0.048954,102160.0,102150.0,0.3608]
[1737080315747,0.048947,102170.0,102150.0,0.49889667]
[1737080316048,0.048947,102170.0,102150.0,0.54785067]
[1737080316259,0.04895,102160.0,102150.0,0.3608]
[1737080316452,0.048945,102170.0,102150.0,0.54784967]
[1737080316752,0.048945,102170.0,102160.0,0.3608]
[1737080317153,0.048945,102170.0,102150.0,0.3608]
[1737080317350,0.04895,102160.0,102150.0,0.3608]
[1737080317551,0.04895,102160.0,102140.0,0.37390401]
[1737080317848,0.048954,102150.0,102140.0,0.00146815]
[1737080318044,0.048964,102130.0,102120.0,0.58707189]
[1737080318248,0.4531,102170.0,102120.0,0.73644482]
[1737080318453,0.13809667,102160.0,102130.0,0.3608]
[1737080318654,0.048959,102140.0,102130.0,0.3608]
[1737080318856,0.048955,102150.0,102130.0,0.54785867]
[1737080319158,0.048955,102150.0,102140.0,0.3608]
[1737080322650,0.048955,102150.0,102130.0,0.3608]
[1737080322852,0.048959,102140.0,102130.0,0.3608]
[1737080323150,0.18705567,102140.0,102130.0,0.3608]
[1737080323455,0.048964,102130.0,102110.0,0.58707189]
[1737080323639,0.048969,102120.0,102110.0,0.58707189]
[1737080324054,0.048969,102120.0,102110.0,0.3608]
[1737080325655,0.409769,102120.0,102100.0,0.4608]
[1737080325845,0.048974,102110.0,102100.0,0.4608]
[1737080326751,0.048974,102110.0,102100.0,0.59889667]
[1737080326953,0.142467,102130.0,102110.0,0.048972]
[1737080327152,0.04896,102140.0,102120.0,1.04675934]
[1737080327346,0.04896,102140.0,102130.0,0.49889667]
[1737080328055,0.00146938,102150.0,102140.0,0.048959]
[1737080328359,0.00146938,102150.0,102140.0,0.54785567]
[1737080328753,0.05042338,102150.0,102140.0,0.54785567]
[1737080330346,0.05042338,102150.0,102140.0,0.49889667]
[1737080331959,0.048959,102140.0,102130.0,0.50812509]
[1737080333052,0.048959,102140.0,102130.0,0.49889667]
[1737080334456,0.048959,102140.0,102130.0,0.3608]
[1737080335760,0.05042538,102150.0,102130.0,0.54785867]
[1737080335963,0.00146938,102150.0,102140.0,0.49889667]
[1737080336848,0.05042338,102150.0,102140.0,0.3608]
[1737080337249,0.05042338,102150.0,102140.0,0.49889667]
[1737080337657,0.05042338,102150.0,102140.0,0.49882475]
[1737080337859,0.05042338,102150.0,102140.0,0.36072808]
[1737080339066,0.05042338,102150.0,102140.0,0.49882475]
[1737080339365,0.05042338,102150.0,102140.0,0.36072808]
[1737080341357,0.048959,102140.0,102130.0,0.3608]
[1737080341562,0.048964,102130.0,102120.0,0.3608]
[1737080342069,0.18706067,102130.0,102120.0,0.3608]
[1737080342261,0.244364,102130.0,102120.0,0.3608]
[1737080343664,0.143064,102130.0,102120.0,0.3608]
[1737080344270,0.34815105,102130.0,102120.0,0.3608]
[1737080346871,0.143064,102130.0,102120.0,0.3608]
[1737080347867,0.048969,102120.0,102110.0,0.3608]
[1737080348072,0.048974,102110.0,102100.0,0.4608]
[1737080348775,0.048972,102120.0,102100.0,0.64787367]
[1737080348970,0.048972,102120.0,102110.0,0.3608]
[1737080352371,0.25405905,102120.0,102110.0,0.3608]
[1737080352678,0.25405905,102120.0,102110.0,0.54787067]
[1737080352878,0.20508705,102120.0,102110.0,0.54787067]
[1737080353073,0.23417902,102120.0,102110.0,0.54787067]
[1737080353380,0.23417902,102120.0,102110.0,0.6037939]
[1737080354272,0.39815927,102140.0,102120.0,0.048967]
[1737080354469,0.39815927,102140.0,102130.0,0.8137199]
[1737080355182,0.31067088,102140.0,102130.0,0.8137199]
[1737080355376,0.31067088,102140.0,102130.0,0.7216]
[1737080355377,0.25391137,102140.0,102130.0,0.7216]
[1737080356573,0.48809039,102140.0,102130.0,0.7216]
[1737080357980,0.25391137,102140.0,102130.0,0.7216]
[1737080358983,0.04896,102140.0,102130.0,0.7216]
[1737080361174,0.14666,102140.0,102130.0,0.7216]
[1737080361781,0.04896,102140.0,102130.0,0.7216]
[1737080362077,0.20642075,102150.0,102130.0,0.85978624]
[1737080362285,0.20642075,102150.0,102140.0,0.49898624]
[1737080362779,0.20642075,102150.0,102140.0,0.60188624]
[1737080363177,0.00146938,102150.0,102140.0,0.65084524]
[1737080363979,0.00146938,102150.0,102140.0,0.512659]
[1737080364767,0.00146938,102150.0,102140.0,0.65084524]
[1737080365278,0.00146938,102150.0,102140.0,0.60188624]
[1737080365779,0.00146938,102150.0,102140.0,0.65084524]
[1737080366379,0.20495137,102170.0,102140.0,0.60188624]
[1737080366682,0.20495137,102170.0,102160.0,0.3608]
[1737080368482,0.53946477,102180.0,102160.0,0.7216]
[1737080368802,0.53946477,102180.0,102170.0,0.3608]
[1737080369289,0.53946477,102180.0,102160.0,0.3608]
[1737080369290,0.048945,102170.0,102160.0,0.3608]
[1737080370388,0.048945,102170.0,102160.0,0.34279999]
[1737080373089,0.04895,102160.0,102150.0,0.3608]
[1737080373878,0.048954,102150.0,102140.0,0.3608]
[1737080374079,0.04895,102160.0,102140.0,0.85978624]
[1737080374284,0.04895,102160.0,102150.0,0.3608]
[1737080374483,0.28312902,102160.0,102150.0,0.3608]
[1737080376587,0.28312902,102160.0,102150.0,0.45289892]
[1737080377296,0.28312902,102160.0,102150.0,0.3608]
[1737080378184,0.04895,102160.0,102150.0,0.3608]
[1737080378890,0.17763785,102160.0,102150.0,0.3608]
[1737080379087,0.17763785,102160.0,102150.0,0.45289892]
[1737080379391,0.17763785,102160.0,102150.0,0.3608]
[1737080379977,0.3124014,102160.0,102150.0,0.3608]
[1737080383699,0.048954,102150.0,102130.0,0.3608]
[1737080383888,0.048966,102130.0,102110.0,0.50187292]
[1737080384085,0.048966,102130.0,102120.0,0.45289892]
[1737080384285,0.5605,102150.0,102130.0,0.048962]
[1737080384286,0.048956,102150.0,102130.0,0.048962]
[1737080384486,0.6242514,102160.0,102140.0,0.45289892]
[1737080384487,0.8742024,102160.0,102140.0,0.45289892]
[1737080384686,0.4644514,102160.0,102150.0,0.45289892]
[1737080384892,0.3641514,102160.0,102150.0,0.45289892]
[1737080385200,0.2634514,102160.0,102150.0,0.50185292]
[1737080385998,0.37094115,102170.0,102150.0,0.50185292]
[1737080386694,0.47124115,102170.0,102150.0,0.50185292]
[1737080386898,0.04895,102160.0,102150.0,0.3608]
[1737080387094,0.04895,102160.0,102150.0,0.45289892]
[1737080388405,0.04895,102160.0,102150.0,0.3608]
[1737080388791,0.04895,102160.0,102150.0,0.45289892]
[1737080389703,0.04895,102160.0,102150.0,0.46214119]
[1737080390402,0.47124215,102170.0,102150.0,0.51109419]
[1737080391205,0.12867861,102160.0,102150.0,0.51109419]
[1737080392104,0.23417735,102160.0,102150.0,0.51109419]
[1737080393206,0.47124215,102170.0,102150.0,0.51109419]
[1737080394213,0.21884232,102160.0,102150.0,0.51109419]
[1737080395210,0.47124215,102170.0,102150.0,0.51109419]
[1737080396297,0.58934622,102170.0,102150.0,0.51109419]
[1737080397000,0.58934622,102170.0,102160.0,0.09209892]
[1737080397200,0.54040022,102170.0,102160.0,0.09209892]
[1737080397604,0.54040022,102170.0,102160.0,0.50184892]
[1737080398302,0.3056801,102170.0,102160.0,0.14104892]
[1737080399109,0.3056801,102170.0,102160.0,0.50184892]
[1737080399498,0.3056801,102170.0,102160.0,0.40975]
[1737080400405,0.3056801,102170.0,102160.0,0.3608]
[1737080400605,0.1003,102170.0,102160.0,0.3608]
[1737080400902,0.1003,102170.0,102160.0,0.45289892]
[1737080402411,0.149245,102170.0,102160.0,0.3608]
[1737080402707,0.04895,102160.0,102140.0,0.3608]
[1737080402911,0.3608,102150.0,102130.0,0.46371487]
[1737080403316,0.048959,102140.0,102130.0,0.46371487]
[1737080403502,0.048959,102140.0,102130.0,0.37161595]
[1737080403699,0.048964,102130.0,102120.0,0.39648246]
[1737080403903,0.60376292,102130.0,102120.0,0.39648246]
[1737080404210,0.048974,102110.0,102100.0,0.72310949]
[1737080404400,0.048974,102110.0,102100.0,0.73248294]
[1737080404903,0.048974,102110.0,102100.0,0.72310949]
[1737080405213,0.618365,102130.0,102100.0,0.77208449]
[1737080405411,0.618365,102130.0,102120.0,0.09209892]
[1737080405610,0.618365,102130.0,102110.0,0.45289892]
[1737080406006,0.048974,102110.0,102100.0,0.55289892]
[1737080406205,0.048974,102110.0,102100.0,0.4608]
[1737080406511,0.152174,102110.0,102100.0,0.4608]
[1737080408317,0.152174,102110.0,102100.0,0.55289892]
[1737080409711,0.2053801,102120.0,102100.0,0.60187392]
[1737080409912,0.2053801,102120.0,102110.0,0.50187292]
[1737080410114,0.2053801,102120.0,102110.0,0.69137184]
[1737080410303,0.52744389,102130.0,102120.0,0.048969]
[1737080410616,0.52744389,102130.0,102120.0,0.409769]
[1737080410817,0.52744389,102130.0,102120.0,0.50186792]
[1737080411615,0.048959,102140.0,102120.0,0.50186792]
[1737080411809,0.048959,102140.0,102130.0,0.45289892]
[1737080412014,0.15362415,102150.0,102130.0,0.50186292]
[1737080412316,0.048959,102140.0,102130.0,0.3608]
[1737080414016,0.50185792,102140.0,102120.0,0.37035612]
[1737080414315,0.150864,102130.0,102110.0,0.45289892]
[1737080414511,0.24296292,102130.0,102110.0,0.3608]
[1737080414716,0.24296292,102130.0,102110.0,0.45289892]
[1737080414717,0.150864,102130.0,102110.0,0.45289892]
[1737080415518,0.150864,102130.0,102110.0,0.46257129]
[1737080417715,0.150864,102130.0,102110.0,0.51154429]
[1737080417915,0.150864,102130.0,102120.0,0.09209892]
[1737080418211,0.150864,102130.0,102110.0,0.51154429]
[1737080421724,0.048969,102120.0,102110.0,0.37047237]
[1737080421920,0.146369,102120.0,102110.0,0.37047237]
[1737080422522,0.23846792,102120.0,102110.0,0.37047237]
[1737080422711,0.146369,102120.0,102110.0,0.37047237]
[1737080424519,0.146369,102120.0,102110.0,0.46257129]
[1737080425415,0.146369,102120.0,102110.0,0.37047237]
[1737080425823,0.146369,102120.0,102110.0,0.00967237]
[1737080426024,0.18949892,102120.0,102100.0,0.4608]
[1737080426230,0.048974,102110.0,102100.0,0.4608]
[1737080426925,0.048974,102110.0,102100.0,0.55289892]
[1737080427125,0.048974,102110.0,102100.0,0.56212759]
[1737080428125,0.048974,102110.0,102100.0,0.47002867]
[1737080428316,0.048974,102110.0,102080.0,0.3608]
[1737080428317,0.3608,102110.0,102080.0,0.3608]
[1737080428623,0.3608,102110.0,102060.0,0.09353892]
[1737080428624,0.3608,102050.0,102020.0,0.39607905]
[1737080428837,0.049012,102030.0,102020.0,0.39607905]
[1737080429031,0.23320984,102030.0,102020.0,0.39607905]
[1737080429221,1.25480984,102030.0,102020.0,0.39607905]
[1737080429621,1.25480984,102030.0,102000.0,0.149024]
[1737080429622,0.86271092,102030.0,102000.0,0.149024]
[1737080429823,0.7216,102010.0,102000.0,0.149024]
[1737080430017,0.3608,102020.0,102010.0,0.049019]
[1737080430526,0.3608,102020.0,102010.0,0.156019]
[1737080430721,0.3608,102020.0,102010.0,0.24811792]
[1737080430925,0.3608,102050.0,102030.0,0.049009]
[1737080431230,0.3608,102040.0,102030.0,0.14110792]
[1737080431532,0.3608,102040.0,102030.0,1.59209892]
[1737080431725,0.3608,102040.0,102030.0,1.73320984]
[1737080431921,0.59552012,102050.0,102030.0,0.18419784]
[1737080432240,0.2634514,102060.0,102040.0,0.66299892]
[1737080432436,0.49918802,102070.0,102050.0,0.54499784]
[1737080432727,0.49918802,102070.0,102060.0,0.59399584]
[1737080432927,0.49918802,102070.0,102060.0,2.09399584]
[1737080433134,0.3608,102090.0,102070.0,0.048993]
[1737080433327,0.409783,102090.0,102080.0,0.1382879]
[1737080433627,0.04899,102080.0,102070.0,0.1382879]
[1737080433833,0.3608,102080.0,102050.0,0.1382879]
[1737080434029,0.3608,102060.0,102050.0,0.1382879]
[1737080434421,0.409798,102060.0,102040.0,0.154507]
[1737080434621,0.3608,102070.0,102050.0,0.1382879]
[1737080434829,0.409794,102070.0,102060.0,0.1382879]
[1737080436032,0.048998,102060.0,102050.0,0.1382879]
[1737080436233,0.409798,102060.0,102040.0,0.2444879]
[1737080436427,0.3608,102050.0,102040.0,0.2444879]
[1737080436734,0.409798,102060.0,102040.0,0.2444879]
[1737080437133,0.409798,102060.0,102040.0,0.1062]
[1737080437823,0.3608,102060.0,102040.0,0.2934939]
[1737080438028,0.3608,102060.0,102050.0,0.1382879]
[1737080438228,0.3608,102060.0,102050.0,0.1872899]
[1737080438628,0.3608,102070.0,102050.0,0.1872899]
[1737080439025,0.409793,102070.0,102050.0,0.1382879]
[1737080440125,0.409793,102070.0,102040.0,0.618204]
[1737080440126,0.5480809,102070.0,102040.0,0.7564919]
[1737080440323,0.409793,102070.0,102040.0,0.7564919]
[1737080441336,0.3608,102060.0,102040.0,0.7564919]
[1737080441739,0.3608,102060.0,102040.0,0.3956919]
[1737080442637,0.409798,102060.0,102040.0,0.3956919]
[1737080443932,0.3608,102060.0,102050.0,0.1382879]
[1737080444134,0.3608,102060.0,102050.0,0.1872899]
[1737080444532,0.00147032,102090.0,102050.0,0.8480899]
[1737080444736,0.00147032,102090.0,102080.0,0.8598879]
[1737080445936,0.05045332,102090.0,102080.0,0.7216]
[1737080446339,0.13975822,102090.0,102070.0,0.3608]
[1737080446644,0.048989,102080.0,102070.0,0.3608]
[1737080446830,0.048989,102080.0,102060.0,0.409797]
[1737080447326,0.150989,102080.0,102060.0,0.409797]
[1737080447530,0.048993,102070.0,102060.0,0.3608]
[1737080447725,0.048993,102070.0,102060.0,0.4990879]
[1737080448841,0.048993,102070.0,102060.0,0.3608]
[1737080449338,0.048993,102070.0,102060.0,0.4990879]
[1737080449541,0.048993,102070.0,102060.0,0.3608]
[1737080449947,0.048998,102060.0,102050.0,0.4990879]
[1737080452536,0.409798,102060.0,102040.0,0.66376998]
[1737080452739,0.409798,102060.0,102040.0,0.6542919]
[1737080453242,0.409802,102050.0,102030.0,0.46746986]
[1737080453437,0.049002,102050.0,102040.0,0.1382879]
[1737080454144,0.125802,102050.0,102040.0,0.1382879]
[1737080455035,0.33037588,102050.0,102040.0,0.1382879]
[1737080455437,0.33037588,102050.0,102040.0,0.0922794]
[1737080456543,0.28137388,102050.0,102040.0,0.1412864]
[1737080457549,0.0768,102050.0,102040.0,0.1412864]
[1737080458748,0.25357188,102060.0,102040.0,0.4530794]
[1737080458942,0.25357188,102060.0,102050.0,0.1412814]
[1737080459340,0.048998,102060.0,102050.0,0.1412814]
[1737080459949,0.409798,102060.0,102050.0,0.1412814]
[1737080460247,0.048998,102060.0,102050.0,0.1412814]
[1737080460646,0.048998,102060.0,102040.0,0.4530794]
[1737080460848,0.409798,102060.0,102040.0,0.5020854]
[1737080461043,0.0828,102050.0,102040.0,0.409806]
[1737080461850,0.0828,102050.0,102040.0,0.5020854]
[1737080462149,0.0828,102050.0,102040.0,0.1412854]
[1737080462844,0.131802,102050.0,102040.0,0.1412854]
[1737080463048,0.131802,102050.0,102030.0,0.41871888]
[1737080463049,0.049007,102040.0,102030.0,0.41871888]
[1737080463249,0.409807,102040.0,102030.0,0.00146986]
[1737080463548,0.049015,102030.0,102010.0,0.1413004]
[1737080463742,0.409815,102030.0,102010.0,0.1413004]
[1737080463937,0.049017,102020.0,102010.0,0.1413004]
[1737080464141,0.0792,102020.0,102010.0,0.1413004]
[1737080465247,0.0792,102020.0,102010.0,0.5021004]
[1737080465640,0.0792,102020.0,102010.0,0.0922794]
[1737080465848,0.0792,102020.0,102010.0,0.1412994]
[1737080466249,0.31215848,102020.0,102010.0,0.1412994]
[1737080466553,0.36117548,102020.0,102010.0,0.14875309]
[1737080467451,0.56624028,102020.0,102010.0,0.14875309]
[1737080467953,0.56624028,102020.0,102010.0,0.50955309]
[1737080468344,0.56624028,102020.0,102010.0,0.00745369]
[1737080468546,1.01931968,102020.0,102000.0,0.149025]
[1737080468847,0.127422,102010.0,102000.0,0.2413044]
[1737080469052,0.23038784,102010.0,102000.0,0.2413044]
[1737080469553,0.23038784,102010.0,102000.0,0.24739499]
[1737080469944,0.23038784,102010.0,102000.0,0.15511559]
[1737080470249,0.127422,102010.0,102000.0,0.10609059]
[1737080470859,0.209222,102010.0,102000.0,0.10609059]
[1737080471853,0.209222,102010.0,102000.0,0.19836999]
[1737080472748,0.209222,102010.0,102000.0,0.24739599]
[1737080472948,0.3015014,102010.0,102000.0,0.10609059]
[1737080473150,0.209222,102010.0,102000.0,0.10609059]
[1737080473453,0.049027,102000.0,101980.0,0.5035851]
[1737080473850,0.049027,102000.0,101980.0,0.1427851]
[1737080474057,0.0778,101990.0,101980.0,0.4113057]
[1737080474954,0.0778,101990.0,101980.0,0.5035851]
[1737080475351,0.521,102010.0,101980.0,0.5035851]
[1737080475550,0.0837,102000.0,101990.0,0.1413064]
[1737080476446,0.0837,102000.0,101980.0,0.41738736]
[1737080476447,0.5858054,102000.0,101980.0,0.41738736]
[1737080476643,0.493526,102000.0,101980.0,0.50966676]
[1737080477056,0.493526,102000.0,101980.0,0.14886676]
[1737080477250,0.409831,101990.0,101980.0,0.00755236]
[1737080477446,0.5021104,101990.0,101980.0,0.0014707]
[1737080477652,0.409831,101990.0,101980.0,0.0014707]
[1737080477858,0.409831,101990.0,101980.0,0.0937501]
[1737080478051,0.409831,101990.0,101980.0,0.1427861]
[1737080478255,0.049031,101990.0,101980.0,0.1427861]
[1737080478452,0.409831,101990.0,101980.0,0.1427861]
[1737080479258,0.049031,101990.0,101980.0,0.1427861]
[1737080479449,0.132727,102000.0,101980.0,0.1427861]
[1737080479646,0.132727,102000.0,101990.0,0.0922794]
[1737080480268,0.132727,102000.0,101990.0,0.1413104]
[1737080480451,0.132727,102000.0,101990.0,0.049031]
[1737080481561,0.132727,102000.0,101990.0,0.1413104]
[1737080482159,0.1602,102010.0,101990.0,0.5021104]
[1737080482460,0.1602,102010.0,102000.0,0.1413054]
[1737080482656,0.521,102010.0,102000.0,0.049026]
[1737080482862,0.521,102010.0,102000.0,0.1413054]
[1737080484163,0.521,102010.0,102000.0,0.049026]
[1737080484461,0.521,102010.0,102000.0,0.1413054]
[1737080484462,0.1602,102010.0,102000.0,0.1413054]
[1737080484761,0.1602,102010.0,102000.0,0.049026]
[1737080485352,0.209222,102010.0,101990.0,0.05511343]
[1737080485563,0.409822,102010.0,101990.0,0.14739283]
[1737080485856,0.0784,102000.0,101990.0,0.14739283]
[1737080486763,0.0784,102000.0,101990.0,0.05511343]
[1737080486956,0.0784,102000.0,101990.0,0.14739283]
[1737080488356,0.127426,102000.0,101990.0,0.00608343]
[1737080489259,0.5805054,102000.0,101990.0,0.00608343]
[1737080489460,0.049031,101990.0,101980.0,0.0014707]
[1737080489656,0.5294794,101990.0,101960.0,0.5021244]
[1737080489860,0.488739,101980.0,101960.0,0.5021244]
[1737080490258,0.0763,101970.0,101960.0,0.5021244]
[1737080490459,0.0763,101970.0,101960.0,0.409845]
[1737080490664,0.125341,101970.0,101960.0,0.409845]
[1737080490860,0.125341,101970.0,101960.0,0.5021244]
[1737080491169,0.125341,101970.0,101960.0,0.0922794]
[1737080491864,0.125341,101970.0,101950.0,0.409849]
[1737080492166,0.485749,101960.0,101940.0,0.50979622]
[1737080493276,0.5289794,101960.0,101940.0,0.36846282]
[1737080493571,0.48835,101950.0,101940.0,0.00147122]
[1737080493773,0.12755,101950.0,101940.0,0.09375062]
[1737080493965,0.12755,101950.0,101940.0,0.00147122]
[1737080494664,0.3326148,101950.0,101940.0,0.00147122]
[1737080496070,0.4248942,101950.0,101940.0,0.00147122]
[1737080496466,0.3758442,101950.0,101940.0,0.00147122]
[1737080496663,0.2050648,101950.0,101940.0,0.59588502]
[1737080496872,0.30885848,101960.0,101950.0,0.04905]
[1737080496873,0.2809648,101960.0,101950.0,0.04905]
[1737080497178,0.16853481,101960.0,101950.0,0.5021294]
[1737080497874,0.23295848,101970.0,101950.0,0.5021294]
[1737080498070,0.80106225,101990.0,101960.0,0.4938794]
[1737080498279,0.80106225,101990.0,101970.0,0.5021164]
[1737080498976,0.75203025,101990.0,101980.0,0.049036]
[1737080499161,0.75203025,101990.0,101980.0,0.1413154]
[1737080499367,0.51907177,101990.0,101980.0,0.049036]
[1737080501668,0.15827177,101990.0,101980.0,0.049036]
[1737080507373,0.1568,101990.0,101980.0,0.54842538]